bitfinex-derivatives/quotes_BTCF0:USTF0_20250907
["timestamp","ask_amount","ask_price","bid_price","bid_amount"]
[1757269843743,0.76080718,111060.0,111050.0,0.08111192]
[1757269843943,1.57372718,111060.0,111050.0,0.08111192]
[1757269845242,0.76080718,111060.0,111050.0,0.08111192]
[1757269845436,1.57372718,111060.0,111050.0,0.08111192]
[1757269845846,1.57372718,111060.0,111040.0,0.19476861]
[1757269846143,0.19883617,111050.0,111040.0,0.08121192]
[1757269846337,0.52883617,111050.0,111040.0,0.08111192]
[1757269846843,1.36175617,111050.0,111040.0,0.08111192]
[1757269848243,0.54883617,111050.0,111040.0,0.08111192]
[1757269848445,1.01175617,111050.0,111040.0,0.11693192]
[1757269848646,1.36175617,111050.0,111040.0,0.11693192]
[1757269849243,1.36275617,111050.0,111040.0,0.11693192]
[1757269850748,0.54983617,111050.0,111040.0,0.11693192]
[1757269851050,1.33275617,111050.0,111040.0,0.11693192]
[1757269851735,0.30983617,111050.0,111040.0,0.11693192]
[1757269851940,1.37271617,111050.0,111040.0,0.11693192]
[1757269852243,0.55983617,111050.0,111040.0,0.11693192]
[1757269852545,1.11271617,111050.0,111040.0,0.11693192]
[1757269852750,1.35271617,111050.0,111040.0,0.11693192]
[1757269853050,1.15388,111050.0,111040.0,0.11693192]
[1757269853249,1.35271617,111050.0,111040.0,0.11693192]
[1757269855950,1.35271617,111050.0,111040.0,0.03582]
[1757269856149,1.35271617,111050.0,111040.0,0.14937669]
[1757269856349,1.15388,111050.0,111040.0,0.14937669]
[1757269856554,1.35271617,111050.0,111040.0,0.14937669]
[1757269856851,1.15388,111050.0,111040.0,0.14937669]
[1757269857047,0.81388,111050.0,111040.0,0.14937669]
[1757269857444,0.81388,111050.0,111040.0,0.03582]
[1757269857951,1.01271617,111050.0,111040.0,0.03582]
[1757269859046,0.19983617,111050.0,111040.0,0.03582]
[1757269859250,1.01299617,111050.0,111040.0,0.03582]
[1757269862954,1.01299617,111050.0,111040.0,0.14937669]
[1757269872651,1.01299617,111050.0,111040.0,0.12630669]
[1757269872846,0.81416,111050.0,111040.0,0.14788669]
[1757269873050,0.81416,111050.0,111040.0,0.11541377]
[1757269873353,0.81416,111050.0,111040.0,0.31424994]
[1757269873755,0.82276,111050.0,111040.0,0.48316617]
[1757269875646,0.001,111050.0,111040.0,0.48316617]
[1757269875851,0.8238,111050.0,111040.0,0.64514661]
[1757269877558,0.8238,111050.0,111040.0,0.48316617]
[1757269878562,0.8238,111050.0,111040.0,0.48416617]
[1757269879463,0.8228,111050.0,111040.0,0.48416617]
[1757269884467,0.8228,111050.0,111040.0,0.28533]
[1757269884862,0.8228,111050.0,111040.0,0.48416617]
[1757269885766,0.8228,111050.0,111040.0,0.59746627]
[1757269889969,0.82288,111050.0,111040.0,0.59746627]
[1757269890667,0.82288,111050.0,111040.0,0.3986301]
[1757269890868,0.82288,111050.0,111040.0,0.59746627]
[1757269894369,0.82288,111050.0,111040.0,0.79613562]
[1757269895770,0.70123304,111050.0,111040.0,0.79613562]
[1757269895971,0.70123304,111050.0,111040.0,0.68283552]
[1757269899275,0.70123304,111050.0,111040.0,0.43283552]
[1757269901576,0.70123304,111050.0,111040.0,0.59481596]
[1757269907286,0.70123304,111050.0,111040.0,0.43283552]
[1757269914594,0.70123304,111050.0,111040.0,0.59481596]
[1757269922702,0.70123304,111050.0,111040.0,0.3960632]
[1757269922901,0.8999858,111050.0,111040.0,0.3960632]
[1757269926499,0.8999858,111050.0,111040.0,0.23408276]
[1757269928800,0.8999858,111050.0,111040.0,0.43287552]
[1757269929705,0.8999858,111050.0,111040.0,0.59485596]
[1757269931306,0.8999858,111050.0,111040.0,0.43287552]
[1757269932110,0.8999858,111050.0,111040.0,0.59485596]
[1757269935002,0.8999858,111050.0,111040.0,0.3961032]
[1757269935609,0.8999858,111050.0,111040.0,0.19735044]
[1757269935809,0.8999858,111050.0,111040.0,0.3961032]
[1757269936312,0.8999858,111050.0,111040.0,0.23412276]
[1757269938110,0.8999858,111050.0,111040.0,0.43287552]
[1757269938406,0.8999858,111050.0,111040.0,0.03537]
[1757269938603,0.8999858,111050.0,111040.0,0.23412276]
[1757269939009,0.8999858,111050.0,111040.0,0.43287552]
[1757269939309,0.8999858,111050.0,111040.0,0.23412276]
[1757269939511,1.34873856,111050.0,111040.0,0.00104]
[1757269940307,1.34873856,111050.0,111040.0,0.08210218]
[1757269940911,1.1499858,111050.0,111040.0,0.08210218]
[1757269942714,1.34873856,111050.0,111040.0,0.08210218]
[1757269942908,1.71873856,111050.0,111040.0,0.00104]
[1757269944017,1.71873856,111050.0,111040.0,0.08210218]
[1757269944214,1.71873856,111050.0,111040.0,0.00104]
[1757269956324,1.52012611,111050.0,111040.0,0.00104]
[1757269958128,1.52012611,111050.0,111030.0,0.05366302]
[1757269958324,0.19889307,111040.0,111020.0,0.11352844]
[1757269958529,1.01817307,111030.0,111010.0,0.14993844]
[1757269958722,0.19889307,111020.0,111010.0,0.14993844]
[1757269960123,0.19889307,111020.0,111010.0,0.16293844]
[1757269960432,0.20825632,111020.0,111010.0,0.16293844]
[1757269960931,0.20925632,111020.0,111010.0,0.17293844]
[1757269962527,0.28072463,111020.0,111010.0,0.17293844]
[1757269966229,0.28072463,111020.0,111010.0,0.15003844]
[1757269966531,0.28072463,111020.0,111010.0,0.13703844]
[1757269966728,0.28072463,111020.0,111010.0,0.14903844]
[1757269969520,1.09948463,111020.0,111010.0,0.14903844]
[1757269970132,0.90059156,111020.0,111010.0,0.14903844]
[1757269970430,1.09948463,111020.0,111010.0,0.14903844]
[1757269975837,1.09948463,111020.0,111010.0,0.2300259]
[1757269976338,1.09948463,111020.0,111010.0,0.11649746]
[1757269977531,0.28072463,111020.0,111010.0,0.11649746]
[1757269977933,1.09904463,111020.0,111010.0,0.13939746]
[1757269978436,0.28072463,111020.0,111010.0,0.13939746]
[1757269978633,1.09904463,111020.0,111010.0,0.13939746]
[1757269984941,1.09904463,111020.0,111010.0,0.05841]
[1757269985841,1.09904463,111020.0,111010.0,0.17193844]
[1757269986342,1.09864463,111020.0,111010.0,0.17193844]
[1757269986742,0.08183156,111020.0,111010.0,0.17193844]
[1757269986943,1.09856463,111020.0,111010.0,0.17193844]
[1757269995063,0.89967156,111020.0,111010.0,0.17193844]
[1757269995262,1.09856463,111020.0,111010.0,0.17193844]
[1757270010073,0.28072463,111020.0,111010.0,0.17193844]
[1757270010369,1.09820463,111020.0,111010.0,0.17193844]
[1757270016372,1.29712344,111020.0,111010.0,0.17193844]
[1757270020878,1.29712344,111020.0,111010.0,0.14903844]
[1757270021475,1.29712344,111020.0,111010.0,0.17174844]
[1757270026078,0.89931156,111020.0,111010.0,0.17174844]
[1757270026378,1.29712344,111020.0,111010.0,0.17174844]
[1757270031386,1.29712344,111020.0,111010.0,0.05822]
[1757270036388,1.29712344,111020.0,111010.0,0.17174844]
[1757270047802,0.47964344,111020.0,111010.0,0.17174844]
[1757270048003,1.29640344,111020.0,111010.0,0.17174844]
[1757270052806,0.47964344,111020.0,111010.0,0.17174844]
[1757270053005,0.89831156,111020.0,111010.0,0.33825022]
[1757270053306,1.0972175,111020.0,111010.0,0.33825022]
[1757270054409,1.0972175,111020.0,111010.0,0.13934428]
[1757270054614,1.0972175,111020.0,111010.0,0.33825022]
[1757270056197,1.0972175,111020.0,111010.0,0.13934428]
[1757270056401,1.0972175,111020.0,111010.0,0.33825022]
[1757270057306,1.0972175,111020.0,111010.0,0.25712594]
[1757270060409,1.0972175,111020.0,111010.0,0.37066275]
[1757270061303,1.0972175,111020.0,111010.0,0.37066132]
[1757270066915,0.2807375,111020.0,111010.0,0.37066132]
[1757270067122,1.0972975,111020.0,111010.0,0.37066132]
[1757270069716,1.0972975,111020.0,111010.0,0.17175538]
[1757270070019,1.0972975,111020.0,111010.0,0.37066132]
[1757270076222,1.0972975,111020.0,111010.0,0.25712594]
[1757270078326,0.89839156,111020.0,111010.0,0.25709618]
[1757270080325,0.89839156,111020.0,111010.0,0.05822]
[1757270080525,0.89839156,111020.0,111010.0,0.25709618]
[1757270080725,0.89839156,111020.0,111010.0,0.05822]
[1757270081729,0.08183156,111020.0,111010.0,0.05822]
[1757270081924,0.89811156,111020.0,111010.0,0.05822]
[1757270082121,0.89807156,111020.0,111010.0,0.58819656]
[1757270082330,0.89807156,111020.0,111010.0,0.50709618]
[1757270082830,0.89807156,111020.0,111010.0,0.66907662]
[1757270084331,0.89807156,111020.0,111010.0,0.50709618]
[1757270086334,0.89815156,111020.0,111010.0,0.50709618]
[1757270087635,0.89807156,111020.0,111010.0,0.50709618]
[1757270089032,0.89807156,111020.0,111010.0,0.85709618]
[1757270091729,0.89807156,111020.0,111010.0,0.50709618]
[1757270091934,0.89807156,111020.0,111010.0,0.82709618]
[1757270093236,0.89807156,111020.0,111010.0,0.50709618]
[1757270097334,0.89807156,111020.0,111010.0,0.66907662]
[1757270114143,0.89807156,111020.0,111010.0,0.47020044]
[1757270114349,0.89807156,111020.0,111010.0,0.66907662]
[1757270116343,1.34694774,111020.0,111010.0,0.31104416]
[1757270116542,1.34694774,111020.0,111010.0,0.14906372]
[1757270116940,1.34694774,111020.0,111010.0,0.13555372]
[1757270121347,1.34694774,111020.0,111010.0,0.21657476]
[1757270121550,1.34694774,111020.0,111010.0,0.10302104]
[1757270126153,1.34694774,111020.0,111010.0,0.13555372]
[1757270129451,1.34694774,111020.0,111010.0,0.12355372]
[1757270129650,1.34894774,111020.0,111010.0,0.11355372]
[1757270135759,0.53270774,111020.0,111010.0,0.11355372]
[1757270135966,1.34858774,111020.0,111010.0,0.11355372]
[1757270138465,1.54759568,111020.0,111000.0,0.14960372]
[1757270138763,0.19894206,111010.0,111000.0,0.14960372]
[1757270138961,0.19894206,111010.0,111000.0,0.14950372]
[1757270139765,0.19894206,111010.0,111000.0,0.15050372]
[1757270140369,0.19894206,111010.0,111000.0,0.15250372]
[1757270140861,0.19894206,111010.0,111000.0,0.15350372]
[1757270141764,0.19894206,111010.0,111000.0,0.11745225]
[1757270142364,0.19894206,111010.0,111000.0,0.00404]
[1757270143668,0.19894206,111010.0,111000.0,0.01742]
[1757270143970,0.19894206,111010.0,111000.0,0.04015]
[1757270145566,0.97254206,111010.0,111000.0,0.04015]
[1757270145969,0.19894206,111010.0,111000.0,0.04015]
[1757270146170,0.97250206,111010.0,111000.0,0.04015]
[1757270150181,0.97250206,111010.0,111000.0,0.01742]
[1757270152984,0.97250206,111010.0,111000.0,0.04015]
[1757270155887,0.97250206,111010.0,111000.0,0.15364916]
[1757270160588,1.17144412,111010.0,111000.0,0.13091916]
[1757270160786,1.17144412,111010.0,111000.0,0.00404]
[1757270163286,1.17144412,111010.0,111000.0,0.11753916]
[1757270171595,1.17144412,111010.0,111000.0,0.00404]
[1757270173596,0.97250206,111010.0,111000.0,0.00404]
[1757270176394,0.97250206,111010.0,111000.0,0.08511339]
[1757270178496,1.01482206,111010.0,111000.0,0.08511339]
[1757270178700,1.01482206,111010.0,111000.0,0.00404]
[1757270180093,1.01482206,111010.0,111000.0,0.04015]
[1757270181690,0.08083156,111020.0,111000.0,0.04015]
[1757270181895,0.33894206,111020.0,111010.0,0.08108852]
[1757270182097,1.35376412,111020.0,111010.0,0.08108852]
[1757270182804,1.58376412,111020.0,111010.0,0.08108852]
[1757270183697,1.65722821,111020.0,111010.0,0.08108852]
[1757270185199,1.66620342,111020.0,111010.0,0.08108852]
[1757270185504,1.66920342,111020.0,111010.0,0.08108852]
[1757270190309,1.66920342,111020.0,111000.0,0.11733852]
[1757270190508,0.19894206,111010.0,111000.0,0.11733852]
[1757270190809,0.19894206,111010.0,111000.0,0.03615]
[1757270191410,1.01478206,111010.0,111000.0,0.03615]
[1757270192302,1.01478206,111010.0,111000.0,0.03915]
[1757270192911,1.01478206,111010.0,111000.0,0.15264916]
[1757270193306,1.01478206,111010.0,111000.0,0.15364916]
[1757270196508,1.01478206,111010.0,111000.0,0.04015]
[1757270198311,1.01479039,111010.0,111000.0,0.04015]
[1757270199910,1.01479039,111010.0,111000.0,0.15364916]
[1757270200107,1.01475039,111010.0,111000.0,0.15364916]
[1757270203407,0.0824393,111020.0,111000.0,0.60259955]
[1757270203616,0.19895039,111020.0,111010.0,0.11625017]
[1757270203906,1.1658,111020.0,111010.0,0.11625017]
[1757270204111,1.38475039,111020.0,111010.0,0.11625017]
[1757270206216,1.39697164,111020.0,111010.0,0.03512]
[1757270206815,1.46973675,111020.0,111010.0,0.03512]
[1757270213023,1.46973675,111020.0,111010.0,0.11625017]
[1757270215927,1.46973675,111020.0,111010.0,0.03512]
[1757270216420,1.46973675,111020.0,111010.0,0.11349916]
[1757270223335,1.46973675,111020.0,111000.0,0.1662403]
[1757270223536,0.19895039,111010.0,111000.0,0.1662403]
[1757270223735,0.19895039,111010.0,111000.0,0.1661403]
[1757270224533,0.19895039,111010.0,111000.0,0.1681403]
[1757270225334,0.19895039,111010.0,111000.0,0.1691403]
[1757270226135,0.19895039,111010.0,111000.0,0.1681403]
[1757270226336,0.19895039,111010.0,111000.0,0.1701403]
[1757270231142,0.89778636,111020.0,111000.0,0.1701403]
[1757270231341,0.19895039,111010.0,111000.0,0.1702403]
[1757270231542,0.19895039,111010.0,111000.0,0.1701403]
[1757270232041,0.19895039,111010.0,111000.0,0.1681403]
[1757270232242,0.19895039,111010.0,111000.0,0.1691403]
[1757270232642,0.19895039,111010.0,111000.0,0.1671403]
[1757270232843,0.19895039,111010.0,111000.0,0.1691403]
[1757270235748,0.19895039,111010.0,111000.0,0.1701403]
[1757270236947,0.19895039,111010.0,111000.0,0.1746403]
[1757270243753,0.89778636,111020.0,111000.0,0.1746403]
[1757270243950,1.21778636,111020.0,111010.0,0.08109993]
[1757270244153,1.41673675,111020.0,111010.0,0.08109993]
[1757270246051,1.41673675,111020.0,111000.0,0.14085107]
[1757270246256,0.19895039,111010.0,111000.0,0.14085107]
[1757270246453,0.19895039,111010.0,111000.0,0.14075107]
[1757270246754,0.19895039,111010.0,111000.0,0.13975107]
[1757270247055,0.19895039,111010.0,111000.0,0.12168993]
[1757270247857,0.19895039,111010.0,111000.0,0.12068993]
[1757270248750,0.19895039,111010.0,111000.0,0.12268993]
[1757270248952,0.19895039,111010.0,111000.0,0.12468993]
[1757270254663,0.19895039,111010.0,111000.0,0.23818909]
[1757270254852,0.19895039,111010.0,111000.0,0.15708916]
[1757270255251,0.19895039,111010.0,111000.0,0.13504916]
[1757270255460,0.51895039,111010.0,111000.0,0.20316285]
[1757270255958,0.51895039,111010.0,111000.0,0.08966369]
[1757270260469,0.71796368,111010.0,111000.0,0.08966369]
[1757270264472,0.71796368,111010.0,111000.0,0.00854]
[1757270264670,0.71796368,111010.0,111000.0,0.12203916]
[1757270266374,0.71796368,111010.0,111000.0,0.13538916]
[1757270275385,0.39796368,111010.0,111000.0,0.15701916]
[1757270278491,0.19898184,111010.0,111000.0,0.15701916]
[1757270278687,1.01638184,111010.0,111000.0,0.15701916]
[1757270283788,1.01638184,111010.0,111000.0,0.04352]
[1757270284391,0.81732,111010.0,111000.0,0.04352]
[1757270284590,1.01630184,111010.0,111000.0,0.04352]
[1757270287995,0.81732,111010.0,111000.0,0.04352]
[1757270288195,1.01630184,111010.0,111000.0,0.04352]
[1757270288494,0.81732,111010.0,111000.0,0.04352]
[1757270288694,1.01630184,111010.0,111000.0,0.04352]
[1757270289196,0.19898184,111010.0,111000.0,0.04352]
[1757270289394,1.01626184,111010.0,111000.0,0.04352]
[1757270289693,1.01626184,111010.0,111000.0,0.124653]
[1757270290096,1.01626184,111010.0,111000.0,0.04352]
[1757270290495,1.01626184,111010.0,111000.0,0.12465226]
[1757270291393,1.01626184,111010.0,111000.0,0.04352]
[1757270291792,1.01626184,111010.0,111000.0,0.15701916]
[1757270295100,1.01626184,111010.0,111000.0,0.04352]
[1757270300306,1.37626184,111010.0,111000.0,0.04352]
[1757270302707,0.01808,111000.0,110990.0,0.11296712]
[1757270303002,0.41604368,111000.0,110990.0,0.03173325]
[1757270304103,0.41604368,111000.0,110990.0,0.03873325]
[1757270305612,0.41604368,111000.0,110990.0,0.05677603]
[1757270306007,0.41604368,111000.0,110990.0,0.1439099]
[1757270310818,0.41604368,111000.0,110990.0,0.06277603]
[1757270311117,0.41604368,111000.0,110990.0,0.17627519]
[1757270311617,0.01808,111000.0,110990.0,0.17627519]
[1757270311812,0.41604368,111000.0,110990.0,0.17627519]
[1757270312319,0.41604368,111000.0,110990.0,0.06277603]
[1757270322414,0.21706928,111000.0,110990.0,0.06277603]
[1757270324824,0.21706928,111000.0,110990.0,0.04473325]
[1757270328220,1.03398928,111000.0,110990.0,0.04473325]
[1757270337636,1.03398928,111000.0,110990.0,0.15831985]
[1757270353757,1.03398928,111000.0,110990.0,0.12584951]
[1757270355453,1.48297856,111000.0,110990.0,0.013]
[1757270355647,1.84297856,111000.0,110990.0,0.0941196]
[1757270356053,1.84297856,111000.0,110990.0,0.013]
[1757270356858,1.84297856,111000.0,110990.0,0.006]
[1757270357057,1.84297856,111000.0,110990.0,0.007]
[1757270357259,1.84297856,111000.0,110990.0,0.088081]
[1757270358750,1.84297856,111000.0,110990.0,0.082081]
[1757270358950,1.84297856,111000.0,110990.0,0.083081]
[1757270365456,1.59297856,111000.0,110990.0,0.083081]
[1757270365660,1.59297856,111000.0,110990.0,0.002]
[1757270367459,1.84297856,111000.0,110990.0,0.002]
[1757270368163,1.84297856,111000.0,110980.0,0.0001]
[1757270368358,0.22416928,110990.0,110980.0,0.0001]
[1757270368561,0.55416928,110990.0,110970.0,0.01369]
[1757270368762,1.03737928,110980.0,110970.0,0.03567]
[1757270368961,1.03737928,110980.0,110970.0,0.03557]
[1757270369863,1.03737928,110980.0,110970.0,0.03657]
[1757270371867,1.03737928,110980.0,110970.0,0.03857]
[1757270373667,1.03737928,110980.0,110970.0,0.119651]
[1757270374867,0.22113928,110980.0,110970.0,0.119651]
[1757270375070,1.03741928,110980.0,110970.0,0.119651]
[1757270381466,1.03741928,110980.0,110970.0,0.03857]
[1757270382379,1.43572922,110980.0,110970.0,0.08397934]
[1757270382575,1.23662948,110980.0,110970.0,0.08397934]
[1757270383371,1.24062948,110980.0,110970.0,0.08097934]
[1757270383569,1.24462948,110980.0,110970.0,0.08097934]
[1757270385778,1.24462948,110980.0,110970.0,0.10348934]
[1757270386170,1.24462948,110980.0,110970.0,0.02251]
[1757270386681,0.42834948,110980.0,110970.0,0.02251]
[1757270386881,1.24462948,110980.0,110970.0,0.02251]
[1757270387989,0.42834948,110980.0,110970.0,0.02251]
[1757270388278,1.24462948,110980.0,110970.0,0.03546]
[1757270390779,0.42834948,110980.0,110970.0,0.03546]
[1757270390980,1.24462948,110980.0,110970.0,0.03546]
[1757270392381,1.24462948,110980.0,110970.0,0.11643934]
[1757270393175,0.42834948,110980.0,110970.0,0.11643934]
[1757270393382,1.24462948,110980.0,110970.0,0.11643934]
[1757270395784,0.42834948,110980.0,110970.0,0.11643934]
[1757270395985,1.24458948,110980.0,110970.0,0.23002594]
[1757270396184,1.24458948,110980.0,110970.0,0.1490466]
[1757270398588,1.04548974,110980.0,110970.0,0.59814634]
[1757270398789,1.04548974,110980.0,110970.0,0.48455974]
[1757270398984,0.84639,110980.0,110970.0,0.48455974]
[1757270399188,1.04548974,110980.0,110970.0,0.48455974]
[1757270399390,1.04548974,110980.0,110970.0,0.56569943]
[1757270399692,0.84639,110980.0,110970.0,0.56569943]
[1757270399889,1.04548974,110980.0,110970.0,0.56569943]
[1757270400684,0.84639,110980.0,110970.0,0.36659969]
[1757270400889,1.04548974,110980.0,110970.0,0.56569943]
[1757270404588,1.04548974,110980.0,110970.0,0.48455974]
[1757270407094,1.04548974,110980.0,110970.0,0.5981553]
[1757270410397,1.04548974,110980.0,110970.0,0.39905556]
[1757270410697,1.04548974,110980.0,110970.0,0.5981553]
[1757270411402,1.04548974,110980.0,110970.0,0.39905556]
[1757270411598,1.04548974,110980.0,110970.0,0.5981553]
[1757270413205,1.24458948,110980.0,110970.0,0.5981553]
[1757270415405,1.24458948,110980.0,110970.0,0.39905556]
[1757270415605,1.24458948,110980.0,110970.0,0.5981553]
[1757270415906,1.24458948,110980.0,110970.0,0.39905556]
[1757270416105,1.24458948,110980.0,110970.0,0.5981553]
[1757270416606,0.84639,110980.0,110970.0,0.39905556]
[1757270416906,1.24458948,110980.0,110970.0,0.39905556]
[1757270417104,1.24458948,110980.0,110970.0,0.5981553]
[1757270418208,1.24458948,110980.0,110970.0,0.39905556]
[1757270420098,1.49458948,110980.0,110970.0,0.14905556]
[1757270428515,1.09639,110980.0,110970.0,0.14905556]
[1757270428710,1.49458948,110980.0,110970.0,0.14905556]
[1757270435018,0.28015,110980.0,110970.0,0.14905556]
[1757270435213,1.49654948,110980.0,110970.0,0.14905556]
[1757270436116,1.49654948,110980.0,110970.0,0.23016473]
[1757270436516,1.49654948,110980.0,110970.0,0.11656917]
[1757270439312,1.24654948,110980.0,110970.0,0.11656917]
[1757270443121,1.24654948,110980.0,110970.0,0.03546]
[1757270443327,1.24654948,110980.0,110970.0,0.11657728]
[1757270444429,1.04741489,110980.0,110970.0,0.11657728]
[1757270446133,1.04741489,110980.0,110970.0,0.03546]
[1757270446731,1.04741489,110980.0,110970.0,0.1490242]
[1757270447127,1.04741489,110980.0,110970.0,0.03546]
[1757270447431,1.04741489,110980.0,110970.0,0.1490242]
[1757270449027,1.04741489,110980.0,110970.0,0.1135642]
[1757270450635,1.04741489,110980.0,110970.0,0.1354542]
[1757270454940,1.04741489,110980.0,110970.0,0.02189]
[1757270456837,1.04741489,110980.0,110970.0,0.03582]
[1757270463050,1.04741489,110980.0,110970.0,0.1493842]
[1757270472856,1.04741489,110980.0,110970.0,0.03582]
[1757270474162,1.04741489,110980.0,110970.0,0.02215]
[1757270474461,1.04741489,110980.0,110970.0,0.1357142]
[1757270475163,0.84835,110980.0,110970.0,0.1135642]
[1757270475354,1.24647978,110980.0,110970.0,0.1135642]
[1757270475559,1.49647978,110980.0,110960.0,0.01395]
[1757270475758,0.43156978,110970.0,110960.0,0.0001]
[1757270475960,0.43156978,110970.0,110950.0,0.17602044]
[1757270476161,0.84286,110960.0,110950.0,0.20267044]
[1757270476355,1.04192489,110960.0,110950.0,0.16648044]
[1757270476561,1.04192489,110960.0,110950.0,0.0045]
[1757270477164,1.04192489,110960.0,110950.0,0.0075]
[1757270477364,1.04192489,110960.0,110950.0,0.08859246]
[1757270478071,1.04192489,110960.0,110950.0,0.08959246]
[1757270478769,1.11245856,110960.0,110950.0,0.08959246]
[1757270480866,1.11245856,110960.0,110950.0,0.0085]
[1757270482674,1.11245856,110960.0,110950.0,0.08959246]
[1757270482971,1.11245856,110960.0,110950.0,0.0085]
[1757270483672,1.11253856,110960.0,110950.0,0.0085]
[1757270484871,1.11257856,110960.0,110950.0,0.04372]
[1757270486373,1.11257856,110960.0,110950.0,0.12481246]
[1757270488876,1.11237856,110960.0,110950.0,0.12481246]
[1757270493982,1.11197856,110960.0,110950.0,0.12481246]
[1757270494583,0.29173856,110960.0,110950.0,0.12481246]
[1757270494881,1.11193856,110960.0,110950.0,0.04372]
[1757270495281,1.11193856,110960.0,110950.0,0.12481246]
[1757270501690,1.11193856,110960.0,110950.0,0.08959246]
[1757270504394,1.31120575,110960.0,110950.0,0.08959246]
[1757270505694,1.31068575,110960.0,110950.0,0.03082]
[1757270506794,1.31068575,110960.0,110950.0,0.11197417]
[1757270507196,1.50985179,110960.0,110950.0,0.11197417]
[1757270507489,1.50985179,110960.0,110950.0,0.03082]
[1757270507696,0.69017179,110960.0,110950.0,0.03082]
[1757270507894,1.50965179,110960.0,110950.0,0.03082]
[1757270508195,1.50965179,110960.0,110950.0,0.11197718]
[1757270509795,0.69017179,110960.0,110950.0,0.11197718]
[1757270509994,1.50953179,110960.0,110950.0,0.11197718]
[1757270511195,1.31036575,110960.0,110950.0,0.11197718]
[1757270512394,1.31024575,110960.0,110950.0,0.11197718]
[1757270512590,1.31020575,110960.0,110950.0,0.11197718]
[1757270514196,1.31020575,110960.0,110950.0,0.03082]
[1757270515001,0.49100575,110960.0,110950.0,0.04411]
[1757270515189,1.31004575,110960.0,110950.0,0.04411]
[1757270517002,0.49100575,110960.0,110950.0,0.04411]
[1757270517202,0.09267367,110960.0,110950.0,0.04411]
[1757270517398,1.30992575,110960.0,110950.0,0.04411]
[1757270517601,1.31016575,110960.0,110950.0,0.04411]
[1757270517800,1.31016575,110960.0,110950.0,0.15749994]
[1757270519505,1.31016575,110960.0,110950.0,0.04411]
[1757270521507,1.31016575,110960.0,110950.0,0.15749994]
[1757270522508,0.49100575,110960.0,110950.0,0.15749994]
[1757270522707,1.31000575,110960.0,110950.0,0.15749994]
[1757270523112,1.31000575,110960.0,110950.0,0.04411]
[1757270523703,1.50917179,110960.0,110950.0,0.08116391]
[1757270524107,1.50917179,110960.0,110940.0,0.01404]
[1757270524108,1.31000575,110960.0,110940.0,0.09520391]
[1757270524303,0.22135604,110950.0,110940.0,0.11726391]
[1757270524502,0.22135604,110950.0,110940.0,0.11716391]
[1757270525206,0.22135604,110950.0,110940.0,0.12016391]
[1757270525412,0.22135604,110950.0,110940.0,0.13116391]
[1757270526111,0.22135604,110950.0,110940.0,0.05]
[1757270526303,0.22135604,110950.0,110940.0,0.047]
[1757270526504,0.22135604,110950.0,110940.0,0.054]
[1757270526909,0.23026441,110950.0,110940.0,0.054]
[1757270527106,0.42943045,110950.0,110940.0,0.054]
[1757270528312,0.23026441,110950.0,110940.0,0.054]
[1757270531414,0.03109837,110950.0,110940.0,0.054]
[1757270531613,0.23026441,110950.0,110940.0,0.054]
[1757270534215,0.23026441,110950.0,110940.0,0.13516391]
[1757270535416,0.23026441,110950.0,110940.0,0.054]
[1757270536112,0.23026441,110950.0,110940.0,0.13516391]
[1757270545726,0.23026441,110950.0,110940.0,0.054]
[1757270549618,0.23026441,110950.0,110940.0,0.16738994]
[1757270550018,0.23026441,110950.0,110940.0,0.054]
[1757270556425,0.23026441,110950.0,110940.0,0.16738994]
[1757270556922,1.04970441,110950.0,110940.0,0.16738994]
[1757270562029,0.23026441,110950.0,110940.0,0.16738994]
[1757270562231,1.04930441,110950.0,110940.0,0.16738994]
[1757270565329,1.04918441,110950.0,110940.0,0.054]
[1757270565931,1.04910441,110950.0,110940.0,0.054]
[1757270566130,1.04910441,110950.0,110940.0,0.16764891]
[1757270566331,1.04910343,110950.0,110940.0,0.16764891]
[1757270566533,1.04910343,110950.0,110940.0,0.054]
[1757270572634,0.23026343,110950.0,110940.0,0.054]
[1757270573037,0.91690343,110950.0,110940.0,0.054]
[1757270575432,0.23026343,110950.0,110940.0,0.054]
[1757270575731,0.03109837,110950.0,110940.0,0.054]
[1757270575932,0.71701837,110950.0,110940.0,0.25316506]
[1757270576134,0.71701837,110950.0,110940.0,0.36681397]
[1757270576439,0.71701837,110950.0,110940.0,0.054]
[1757270577339,0.91618343,110950.0,110940.0,0.054]
[1757270578937,0.91618343,110950.0,110940.0,0.16762939]
[1757270589844,0.91618343,110950.0,110940.0,0.054]
[1757270590644,0.23026343,110950.0,110940.0,0.054]
[1757270590853,0.69178837,110950.0,110940.0,0.334307]
[1757270591042,0.69178837,110950.0,110940.0,0.25316506]
[1757270591748,0.71481837,110950.0,110940.0,0.25316506]
[1757270593051,0.69178837,110950.0,110940.0,0.25316506]
[1757270594359,0.69178837,110950.0,110940.0,0.36676378]
[1757270596458,0.71481837,110950.0,110940.0,0.36676378]
[1757270603462,0.03193837,110950.0,110940.0,0.36676378]
[1757270603662,0.84957837,110950.0,110940.0,0.36676378]
[1757270606259,0.00890837,110950.0,110940.0,0.44676378]
[1757270606459,0.88830851,110960.0,110950.0,0.01325]
[1757270606660,0.88830851,110960.0,110950.0,0.30483506]
[1757270606860,0.91133851,110960.0,110950.0,0.30483506]
[1757270607363,0.88830851,110960.0,110950.0,0.59483506]
[1757270607864,0.88830851,110960.0,110950.0,0.70843378]
[1757270608060,0.07066851,110960.0,110950.0,0.96043378]
[1757270608257,2.66063,110980.0,110970.0,0.03567]
[1757270608962,2.66063,110980.0,110970.0,0.14926872]
[1757270609362,2.66063,110980.0,110970.0,0.03567]
[1757270609563,2.66463,110980.0,110970.0,0.03567]
[1757270610164,2.86379506,110980.0,110970.0,0.03567]
[1757270610554,2.87693,110980.0,110970.0,0.03567]
[1757270613066,2.87293,110980.0,110970.0,0.03567]
[1757270613264,2.87593,110980.0,110970.0,0.03567]
[1757270613967,2.87193,110980.0,110970.0,0.03567]
[1757270614264,2.87593,110980.0,110970.0,0.11658211]
[1757270614765,2.87493,110980.0,110970.0,0.11658211]
[1757270617566,2.87493,110980.0,110970.0,0.03567]
[1757270617762,1.05661,110980.0,110970.0,0.03567]
[1757270622073,0.85744494,110980.0,110970.0,0.03567]
[1757270622672,0.85744494,110980.0,110970.0,0.23483506]
[1757270622872,0.85744494,110980.0,110970.0,0.31574717]
[1757270626367,0.85744494,110980.0,110970.0,0.23483506]
[1757270626568,0.03816494,110980.0,110970.0,0.31570386]
[1757270626771,0.03816494,110980.0,110970.0,0.56570386]
[1757270626968,0.03816494,110980.0,110970.0,0.48483506]
[1757270627378,0.03816494,110980.0,110970.0,0.84483506]
[1757270628275,0.01513494,110980.0,110970.0,0.84465546]
[1757270630380,0.01213494,110980.0,110970.0,0.84465546]
[1757270630579,0.01213494,110980.0,110970.0,0.84565546]